fUST/lending_fUST_20241209
["ID","MTS","AMOUNT","RATE_DAILY","PERIOD"]
[344730131,1733750671042,156.32,0.00025,14]
[344730216,1733750865371,156.32,0.00025,14]
[344730219,1733750911011,1868.47811757,0.000176,2]
[344730227,1733751000383,274.414283,0.00013973,2]
[344730248,1733751032347,-722.89310071,0.00020347,2]
[344730347,1733751038556,-1906.94204714,0.00020347,2]
[344730348,1733751038571,-274.414283,0.00020447,2]
[344730349,1733751038581,-173.510313,0.00022293,2]
[344730350,1733751038591,-300.0,0.00023075,2]
[344730351,1733751038600,-2264.07961363,0.00023076,2]
[344730352,1733751038612,-22635.92038637,0.00023076,2]
[344730353,1733751038621,-268.351301,0.00023146,2]
[344730354,1733751038631,-543.32400133,0.000235,2]
[344730355,1733751038640,-350.3382999,0.00023507,2]
[344730356,1733751038650,-345.605,0.0002375,2]
[344730357,1733751038659,-351.1524441,0.000238,2]
[344730358,1733751038668,-351.1524441,0.000238,2]
[344730359,1733751038682,-351.1524441,0.000238,2]
[344730360,1733751038691,-351.1524441,0.000238,2]
[344730361,1733751038701,-600.0,0.00024,2]
[344730362,1733751038711,-351.1524441,0.00024,2]
[344730363,1733751038725,-157.27911934,0.0002402,2]
[344730364,1733751038735,-600.0,0.000242,3]
[344730365,1733751038745,-600.0,0.000244,5]
[344730366,1733751038755,-351.1524441,0.00024438,2]
[344730367,1733751038766,-351.1524441,0.00024438,2]
[344730368,1733751038776,-351.1524441,0.00024438,2]
[344730369,1733751038786,-351.1524441,0.00024438,2]
[344730370,1733751038796,-351.1524441,0.00024438,2]
[344730371,1733751038805,-351.1524441,0.00024438,2]
[344730372,1733751038815,-351.1524441,0.00024438,2]
[344730373,1733751038824,-350.0669185,0.00024438,2]
[344730374,1733751038838,-2816.05094787,0.000245,2]
[344730375,1733751038848,-191.5183689,0.0002475,2]
[344730376,1733751038858,-665.71267779,0.000249,2]
[344730377,1733751038868,-500.0,0.00024973,2]
[344730378,1733751038877,-500.0,0.00024973,2]
[344730379,1733751038887,-629.43857148,0.00024973,2]
[344730380,1733751038896,-501.15609388,0.00024973,2]
[344730381,1733751038907,-500.0,0.00024973,2]
[344730382,1733751038916,-178.41201349,0.00024973,2]
[344730383,1733751038926,-501.17300198,0.00024973,2]
[344730384,1733751038936,-240.97581729,0.00024998,2]
[344730385,1733751038946,-106156.17436019,0.00024999,2]
[344730392,1733751040405,-1000.0,0.00024999,2]
[344730393,1733751040417,-81965.59561967,0.00024999,2]
[344730394,1733751040426,-320.88198621,0.00024999,2]
[344730395,1733751040435,-51363.44270815,0.00024999,10]
[344730396,1733751040446,-39468.92370112,0.00024999,10]
[344730413,1733751044073,-334831.40359073,0.00024999,10]
[344730414,1733751044083,-153129.62311684,0.00025,10]
[344730425,1733751046447,-425238.18963848,0.00025,10]
[344730428,1733751060247,156.32,0.00025,14]
[344730434,1733751254516,156.32,0.00025,14]
[344730439,1733751448626,156.32,0.00025,14]
[344730444,1733751642020,156.32,0.00025,14]
[344730452,1733751893034,268.67745,0.00013973,2]
[344730527,1733752238499,-268.67745,0.00020447,2]
[344730528,1733752238508,-591.9463911,0.00022813,2]
[344730529,1733752238518,-268.3513023,0.00023066,2]
[344730530,1733752238527,-0.86656365,0.00023156,2]
[344730531,1733752238542,-249.13343635,0.00023156,2]
[344730532,1733752238551,-3093.66806316,0.00023376,2]
[344730541,1733752240427,-453.49462713,0.00023376,2]
[344730542,1733752240456,-235.23986891,0.00023376,2]
[344730543,1733752240465,-331.181,0.0002375,2]
[344730544,1733752240475,-2629.83514785,0.000239,2]
[344730545,1733752240484,-155.11398472,0.0002396,2]
[344730546,1733752240496,-300.0,0.00023992,2]
[344730547,1733752240505,-300.0,0.00023992,2]
[344730548,1733752240515,-6523.32847109,0.00023993,2]
[344730558,1733752243842,-18376.67152891,0.00023993,2]
[344730559,1733752243851,-702.0335068,0.000246,2]
[344730560,1733752243861,-150.0,0.0002465,2]
[344730561,1733752243870,-2375.0,0.0002465,2]
[344730562,1733752243879,-2172.0,0.0002465,2]
[344730563,1733752243888,-3132.643,0.0002465,2]
[344730564,1733752243897,-599.14141002,0.000249,2]
[344730565,1733752243906,-202.0,0.000249,2]
[344730566,1733752243916,-500.0,0.00024973,2]
[344730567,1733752243925,-250734.93214019,0.00024999,5]
[344730568,1733752243937,-12475.2316,0.00024999,5]
[344730579,1733752519961,-173.510313,0.00022459,2]
[344730580,1733752519989,-404.6697109,0.00022733,2]
[344730581,1733752520018,-150.0,0.000235,2]
[344730582,1733752520046,-8301.924071,0.00023997,2]
[344730583,1733752520074,-300.0,0.00024899,2]
[344730584,1733752520102,-2141.90619387,0.000249,2]
[344730585,1733752520136,-500.0,0.00024973,2]
[344730586,1733752520164,-10323.87454808,0.00024996,5]
[344730587,1733752520195,-166618.82625981,0.00024999,5]
[344730588,1733752520232,-11199.0409929,0.00025,2]
[344730589,1733752520245,-173.510313,0.00025,2]
[344730590,1733752520257,-404.6697109,0.00025,2]
[344730591,1733752520270,-150.0,0.00025,2]
[344730592,1733752520282,-8301.924071,0.00025,2]
[344730593,1733752520294,-300.0,0.00025,2]
[344730594,1733752520305,-2141.90619387,0.00025,2]
[344730595,1733752520317,-500.0,0.00025,2]
[344730596,1733752520328,-10323.87454808,0.00025,2]
[344730597,1733752520339,-64602.61098403,0.00025,2]
[344730598,1733752520349,-160.44099311,0.00025,2]
[344730599,1733752520359,-101855.77428267,0.00025,10]
[344730600,1733752520371,-98097.53681378,0.00025,10]
[344730606,1733752937983,749.5,0.00029976,30]
[344730613,1733753027989,1695.56158017,0.00029976,120]
[344730614,1733753058230,293.237198,0.00013973,2]
[344730672,1733753432721,-293.237198,0.00020447,2]
[344730673,1733753432731,-203.0,0.00022,2]
[344730675,1733753432740,-203.0,0.00022192,2]
[344730677,1733753432749,-203.0,0.00023014,2]
[344730679,1733753432759,-97.4694712,0.0002375,2]
[344730684,1733753432907,-220.0105288,0.0002375,2]
[344730685,1733753432916,-1678.98131667,0.000239,2]
[344730701,1733753438979,-950.85383118,0.000239,2]
[344730702,1733753438988,-643.8555429,0.00024,2]
[344730703,1733753438998,-250.0,0.00024,2]
[344730704,1733753439007,-167.88942567,0.00024164,2]
[344730752,1733753444052,-36.11057433,0.00024164,2]
[344730753,1733753444062,-818.7165803,0.00024411,2]
[344730754,1733753444071,-300.0,0.00024649,2]
[344730755,1733753444081,-300.0,0.00024649,2]
[344730756,1733753444091,-249.85,0.0002465,2]
[344730757,1733753444100,-532.0,0.0002465,2]
[344730758,1733753444109,-2166.0,0.0002465,2]
[344730759,1733753444119,-2445.117,0.0002465,2]
[344730760,1733753444129,-1874.16791968,0.000249,2]
[344730761,1733753444139,-455790.96943116,0.00025,10]
[344730762,1733753444148,-2159.55414784,0.00025,2]
[344730763,1733753444157,-187.0,0.00025,2]
[344730764,1733753444167,-31726.87940261,0.00025,7]
[344730765,1733753444177,-568.04891577,0.00025,2]
[344730766,1733753444187,-4402.24028908,0.00025,2]
[344730767,1733753444197,-46806.90764885,0.00025,2]
[344730768,1733753444207,-204.30384139,0.00025,2]
[344730769,1733753444217,-151.0,0.00025,9]
[344730770,1733753444227,-151.0,0.00025,9]
[344730771,1733753444237,-189.413521,0.00025,7]
[344730772,1733753444247,-151.0,0.00025,7]
[344730773,1733753444257,-151.0,0.00025,7]
[344730775,1733753444267,-151.0,0.00025,7]
[344730776,1733753444277,-151.0,0.00025,7]
[344730778,1733753444289,-151.0,0.00025,7]
[344730779,1733753444298,-151.0,0.00025,7]
[344730780,1733753444308,-151.0,0.00025,5]
[344730781,1733753444317,-151.0,0.00025,9]
[344730782,1733753444327,-151.0,0.00025,7]
[344730783,1733753444337,-151.0,0.00025,7]
[344730784,1733753444347,-151.0,0.00025,7]
[344730785,1733753444357,-170.602197,0.00025,7]
[344730786,1733753444367,-170.602197,0.00025,7]
[344730787,1733753444377,-170.602197,0.00025,7]
[344730788,1733753444499,-170.602197,0.00025,7]
[344730789,1733753444511,-186.373294,0.00025,7]
[344730790,1733753444521,-186.373294,0.00025,7]
[344730791,1733753444536,-1752.336408,0.00025,7]
[344730792,1733753444547,-1752.336408,0.00025,7]
[344730793,1733753444556,-1752.336408,0.00025,7]
[344730794,1733753444566,-1752.336408,0.00025,7]
[344730795,1733753444576,-150.0,0.00025,2]
[344730796,1733753444586,-150.0,0.00025,2]
[344730797,1733753444596,-160.0,0.00025,2]
[344730798,1733753444605,-200770.0,0.00025,2]
[344730799,1733753444615,-599.4655603,0.0002502,2]
[344730800,1733753444625,-155.00569924,0.00025158,2]
[344730801,1733753444634,-599.46556025,0.0002556,2]
[344730802,1733753444644,-1874.16791963,0.00025611,2]
[344730803,1733753444653,-4584.16617545,0.000257,2]
[344730804,1733753444662,-4584.16617545,0.000257,2]
[344730805,1733753444671,-4584.16617545,0.000257,2]
[344730806,1733753444681,-4584.16617545,0.000257,2]
[344730807,1733753444691,-1272.03232917,0.000257,2]
[344730808,1733753444700,-1272.03232914,0.000257,2]
[344730809,1733753444709,-1272.03232914,0.000257,2]
[344730810,1733753444718,-1272.03232914,0.000257,2]
[344730811,1733753444728,-203.0,0.00025775,2]
[344730812,1733753444737,-160.0,0.0002589,2]
[344730813,1733753444747,-334.8068261,0.00026,5]
[344730814,1733753444756,-599.46556025,0.00026099,2]
[344730815,1733753444766,-49768.04696419,0.00026321,2]
[344730816,1733753444775,-160.4409931,0.00026321,2]
[344730817,1733753444788,-1874.16791963,0.00026322,2]
[344730818,1733753444798,-155.00028496,0.00026416,2]
[344730819,1733753444807,-599.46556025,0.00026639,2]
[344730820,1733753444817,-420.0,0.00026713,2]
[344730821,1733753444827,-500.0,0.0002685,2]
[344730822,1733753444837,-293.237198,0.00026921,2]
[344730823,1733753444847,-24203.3296973,0.00027,2]
[344730824,1733753444857,-37512.94450832,0.00027,2]
[344730825,1733753444866,-151.0,0.00027,7]
[344730826,1733753444876,-151.0,0.00027,7]
[344730827,1733753444886,-151.0,0.00027,7]
[344730828,1733753444896,-151.0,0.00027,7]
[344730829,1733753444905,-151.0,0.00027,7]
[344730830,1733753444915,-170.602197,0.00027,7]
[344730831,1733753444924,-170.602197,0.00027,7]
[344730832,1733753444933,-186.373294,0.00027,7]
[344730833,1733753444943,-186.373294,0.00027,7]
[344730834,1733753444952,-186.373294,0.00027,7]
[344730835,1733753444962,-186.373294,0.00027,7]
[344730836,1733753444971,-1752.336408,0.00027,7]
[344730837,1733753444980,-1752.336408,0.00027,7]
[344730838,1733753444990,-151.515016,0.00027,7]
[344730839,1733753445000,-163.88259,0.00027,7]
[344730840,1733753445009,-163.88259,0.00027,7]
[344730841,1733753445018,-232.930134,0.00027,7]
[344730842,1733753445030,-151.0,0.00027,7]
[344730843,1733753445039,-232.930134,0.00027,7]
[344730844,1733753445049,-151.0,0.00027,7]
[344730845,1733753445059,-151.0,0.00027,7]
[344730846,1733753445069,-362.441831,0.00027,7]
[344730847,1733753445079,-204.789309,0.00027,7]
[344730848,1733753445089,-204.789309,0.00027,7]
[344730849,1733753445099,-151.0,0.00027,7]
[344730850,1733753445108,-151.0,0.00027,7]
[344730851,1733753445117,-151.0,0.00027,7]
[344730852,1733753445127,-151.0,0.00027,7]
[344730853,1733753445136,-164.044946,0.00027,7]
[344730854,1733753445146,-694.099567,0.00027,7]
[344730855,1733753445155,-694.099567,0.00027,7]
[344730856,1733753445165,-151.0,0.00027,7]
[344730857,1733753445175,-151.0,0.00027,7]
[344730858,1733753445184,-934.624798,0.00027,7]
[344730859,1733753445194,-151.0,0.00027,7]
[344730860,1733753445203,-934.624798,0.00027,7]
[344730861,1733753445213,-151.0,0.00027,7]
[344730862,1733753445223,-151.0,0.00027,7]
[344730863,1733753445233,-151.0,0.00027,7]
[344730864,1733753445244,-151.0,0.00027,7]
[344730865,1733753445254,-276.508707,0.00027,7]
[344730866,1733753445264,-357.68359,0.00027,7]
[344730867,1733753445274,-357.68359,0.00027,7]
[344730868,1733753445287,-921.985285,0.00027,7]
[344730869,1733753445297,-921.985285,0.00027,7]
[344730870,1733753445307,-340.830975,0.00027,7]
[344730871,1733753445317,-340.830975,0.00027,7]
[344730872,1733753445328,-237.852454,0.00027,7]
[344730873,1733753445338,-237.852454,0.00027,7]
[344730874,1733753445347,-151.0,0.00027,7]
[344730875,1733753445357,-151.0,0.00027,7]
[344730876,1733753445367,-791.179462,0.00027,7]
[344730877,1733753445376,-791.179462,0.00027,7]
[344730878,1733753445387,-370.965053,0.00027,7]
[344730879,1733753445397,-370.965053,0.00027,7]
[344730880,1733753445407,-902.378758,0.00027,7]
[344730881,1733753445417,-902.378758,0.00027,7]
[344730882,1733753445427,-330.736669,0.00027,7]
[344730883,1733753445437,-330.736669,0.00027,7]
[344730884,1733753445452,-606.269775,0.00027,7]
[344730885,1733753445461,-606.269775,0.00027,7]
[344730886,1733753445471,-420.0,0.00027114,2]
[344730887,1733753445480,-351.1524441,0.00027123,2]
[344730888,1733753445491,-351.1524441,0.00027123,2]
[344730889,1733753445501,-351.1524441,0.00027123,2]
[344730890,1733753445511,-351.1524441,0.00027123,2]
[344730891,1733753445522,-351.1524441,0.00027123,2]
[344730892,1733753445535,-351.1524441,0.00027123,2]
[344730893,1733753445545,-351.1524441,0.00027123,2]
[344730894,1733753445555,-351.1524441,0.00027123,2]
[344730895,1733753445565,-349.9312278,0.00027123,2]
[344730896,1733753445575,-599.46556025,0.00027179,2]
[344730897,1733753445584,-161.0,0.00027185,2]
[344730898,1733753445594,-150.17,0.00027235,7]
[344730899,1733753445603,-204.36470243,0.00027235,7]
[344730900,1733753445613,-157.45045125,0.00027235,7]
[344730901,1733753445623,-500.0,0.00027235,7]
[344730902,1733753445633,-500.0,0.00027235,2]
[344730903,1733753445643,-165.08671155,0.00027235,7]
[344730904,1733753445652,-152.01859874,0.00027235,7]
[344730905,1733753445663,-151.4556297,0.00027235,7]
[344730906,1733753445672,-920.06108103,0.00027235,7]
[344730907,1733753445682,-150.17,0.00027235,2]
[344730908,1733753445691,-150.17,0.00027235,7]
[344730909,1733753445701,-500.0,0.00027235,7]
[344730910,1733753445710,-500.0,0.00027235,7]
[344730911,1733753445719,-150.17,0.00027235,2]
[344730912,1733753445729,-150.17,0.00027235,7]
[344730913,1733753445741,-150.17,0.00027235,7]
[344730914,1733753445750,-150.15,0.00027235,7]
[344730915,1733753445760,-203.0,0.00027386,2]
[344730916,1733753445770,-628.99,0.00027397,7]
[344730917,1733753445781,-2541.40964318,0.00027397,120]
[344730918,1733753445791,-150.17,0.00027397,7]
[344730919,1733753445800,-400.77080853,0.00027397,60]
[344730920,1733753445811,-1000.0,0.00027398,5]
[344730921,1733753445820,-150.17,0.00027509,7]
[344730922,1733753445830,-500.0,0.00027509,7]
[344730923,1733753445839,-596.35637622,0.00027509,2]
[344730924,1733753445849,-150.17,0.00027509,7]
[344730925,1733753445859,-500.0,0.00027509,7]
[344730926,1733753445868,-603.51338333,0.00027509,7]
[344730927,1733753445878,-150.17,0.00027509,7]
[344730928,1733753445887,-268.58021841,0.00027509,7]
[344730929,1733753445897,-150.15,0.00027509,7]
[344730930,1733753445906,-153.0,0.00027534,30]
[344730931,1733753445915,-203.0,0.00027616,2]
[344730932,1733753445925,-150.0,0.0002765,2]
[344730933,1733753445934,-2166.0,0.0002765,2]
[344730934,1733753445944,-2371.0,0.0002765,2]
[344730935,1733753445953,-150.17,0.00027671,7]
[344730936,1733753445962,-174.9468446,0.00027671,2]
[344730937,1733753445971,-160.50059012,0.00027673,5]
[344730938,1733753445981,-500.0,0.00027673,5]
[344730939,1733753445990,-500.0,0.00027673,5]
[344730940,1733753446000,-500.0,0.00027673,5]
[344730941,1733753446009,-268.20779954,0.00027673,5]
[344730942,1733753446019,-500.0,0.00027673,5]
[344730943,1733753446030,-500.0,0.00027673,5]
[344730944,1733753446039,-600.0,0.00027673,5]
[344730945,1733753446049,-503.27171946,0.00027673,5]
[344730946,1733753446058,-160.0,0.00027699,10]
[344730947,1733753446068,-3788.0,0.000277,8]
[344730948,1733753446078,-47820.84115468,0.000277,7]
[344730952,1733753446175,-0.44458123,0.000277,7]
[344730956,1733753446807,-203.36889971,0.00027397,7]
[344730957,1733753446818,-237.49082275,0.000277,7]
[344730959,1733753456879,5000.0,0.00025,11]
[344730960,1733753464789,4041.11963463,0.00025,11]
[344730961,1733753502277,5000.0,0.00025,11]
[344730984,1733754011195,268.186341,0.00013973,2]
[344731005,1733754514251,274.62708088,0.0001,2]
[344731008,1733754520310,1757.31273839,0.00011,2]
[344731037,1733754632081,-300.0,0.00018879,2]
[344731039,1733754632091,-300.0,0.00018879,2]
[344731041,1733754632100,-11957.14622171,0.0001888,2]
[344731043,1733754632109,-1119.10490971,0.0001999,2]
[344731045,1733754632119,-1510.75774461,0.00020347,2]
[344731047,1733754632129,-59828.33762209,0.00020377,2]
[344731049,1733754632138,-268.186341,0.00020447,2]
[344731051,1733754632147,-420.0,0.00020581,2]
[344731053,1733754632156,-420.0,0.00020767,2]
[344731055,1733754632166,-262.50560459,0.00021,2]
[344731057,1733754632176,-10305.06341097,0.00021,2]
[344731059,1733754632186,-236.57606423,0.00021,2]
[344731061,1733754632195,-173.510313,0.0002152,2]
[344731063,1733754632204,-1510.75774457,0.0002171,2]
[344731065,1733754632214,-191.80386076,0.00022,2]
[344731067,1733754632223,-557.74570733,0.00022,2]
[344731069,1733754632233,-587.0,0.00022436,2]
[344731071,1733754632242,-587.0,0.00022844,2]
[344731073,1733754632252,-1510.75774457,0.00023072,2]
[344731076,1733754632262,-2629.83514785,0.00024321,2]
[344731077,1733754632271,-1510.75774457,0.00024435,2]
[344731080,1733754632281,-823.0,0.00024458,2]
[344731082,1733754632290,-151.0,0.00024496,4]
[344731084,1733754632300,-59387.45966372,0.000245,4]
[344731086,1733754632310,-11450.19859969,0.000245,2]
[344731088,1733754632325,-888.10743172,0.000245,2]
[344731105,1733754638056,-152.0,0.00022442,2]
[344731106,1733754638068,-311.60001,0.0002432,2]
[344731113,1733754640051,-89.70128321,0.0002432,2]
[344731114,1733754640062,-500.0,0.0002432,2]
[344731115,1733754640075,-500.0,0.0002432,2]
[344731116,1733754640084,-500.0,0.0002432,2]
[344731117,1733754640094,-500.0,0.0002432,2]
[344731118,1733754640104,-451.69260919,0.0002432,2]
[344731119,1733754640114,-377.50559956,0.000245,2]
[344731120,1733754640125,-480.05959388,0.000245,2]
[344731130,1733754643035,-1558.0,0.000245,2]
[344731131,1733754643061,-2718.3555301,0.000245,2]
[344731132,1733754643072,-532.0,0.00024917,2]
[344731133,1733754643082,-2373.0,0.00024917,2]
[344731134,1733754643091,-2169.0,0.00024917,2]
[344731135,1733754643100,-500.0,0.00024973,2]
[344731136,1733754643109,-500.0,0.00024973,2]
[344731137,1733754643118,-513.16385184,0.00024973,2]
[344731138,1733754643127,-8091.67477623,0.00024999,2]
[344731154,1733754933226,241.367706,0.00013973,2]
[344731285,1733755838183,-300.0,0.00019715,2]
[344731286,1733755838197,-300.0,0.00019715,2]
[344731287,1733755838207,-77.41019514,0.00019716,2]
[344731315,1733755843388,-24822.58980486,0.00019716,2]
[344731316,1733755843400,-23446.75733116,0.0002,2]
[344731317,1733755843541,-11553.24266884,0.0002,2]
[344731318,1733755843553,-879.2702028,0.00020247,2]
[344731319,1733755843565,-2629.83514785,0.00020347,2]
[344731320,1733755843577,-500.0,0.00020445,2]
[344731321,1733755843588,-500.0,0.00020445,2]
[344731322,1733755843600,-500.0,0.00020445,2]
[344731323,1733755843612,-500.0,0.00020445,2]
[344731324,1733755843624,-500.0,0.00020445,2]
[344731325,1733755843636,-500.0,0.00020445,2]
[344731326,1733755843649,-500.0,0.00020445,2]
[344731327,1733755843660,-333.50307925,0.00020445,2]
[344731328,1733755843673,-500.0,0.00020445,2]
[344731329,1733755843688,-478.4703431,0.00020445,2]
[344731330,1733755843702,-500.0,0.00020445,2]
[344731331,1733755843714,-500.0,0.00020445,2]
[344731332,1733755843726,-500.0,0.00020445,2]
[344731333,1733755843738,-500.0,0.00020445,2]
[344731334,1733755843750,-500.0,0.00020445,2]
[344731335,1733755843762,-500.0,0.00020445,2]
[344731336,1733755843774,-500.0,0.00020445,2]
[344731337,1733755843786,-500.0,0.00020445,2]
[344731338,1733755843797,-295.16926091,0.00020445,2]
[344731339,1733755843809,-500.0,0.00020445,2]
[344731340,1733755843822,-500.0,0.00020445,2]
[344731341,1733755843834,-500.0,0.00020445,2]
[344731342,1733755843845,-500.0,0.00020445,2]
[344731343,1733755843857,-500.0,0.00020445,2]
[344731344,1733755843869,-500.0,0.00020445,2]
[344731345,1733755843881,-500.0,0.00020445,2]
[344731346,1733755843893,-500.0,0.00020445,2]
[344731347,1733755843904,-500.0,0.00020445,2]
[344731348,1733755843915,-182.91972403,0.00020445,2]
[344731349,1733755843925,-500.0,0.00020445,2]
[344731350,1733755843935,-500.0,0.00020445,2]
[344731351,1733755844086,-500.0,0.00020445,2]
[344731352,1733755844108,-500.0,0.00020445,2]
[344731353,1733755844120,-500.0,0.00020445,2]
[344731354,1733755844130,-500.0,0.00020445,2]
[344731355,1733755844140,-500.0,0.00020445,2]
[344731356,1733755844150,-500.0,0.00020445,2]
[344731357,1733755844159,-393.24320861,0.00020445,2]
[344731371,1733755846121,-106.75679139,0.00020445,2]
[344731372,1733755846131,-500.0,0.00020445,2]
[344731373,1733755846141,-500.0,0.00020445,2]
[344731374,1733755846150,-500.0,0.00020445,2]
[344731375,1733755846160,-500.0,0.00020445,2]
[344731376,1733755846170,-500.0,0.00020445,2]
[344731377,1733755846180,-500.0,0.00020445,2]
[344731378,1733755846189,-500.0,0.00020445,2]
[344731379,1733755846201,-500.0,0.00020445,2]
[344731380,1733755846210,-500.0,0.00020445,2]
[344731381,1733755846220,-500.0,0.00020445,2]
[344731382,1733755846233,-500.0,0.00020445,2]
[344731383,1733755846243,-500.0,0.00020445,2]
[344731384,1733755846252,-500.0,0.00020445,2]
[344731385,1733755846262,-500.0,0.00020445,2]
[344731386,1733755846272,-500.0,0.00020445,2]
[344731387,1733755846282,-500.0,0.00020445,2]
[344731388,1733755846292,-500.0,0.00020445,2]
[344731389,1733755846302,-500.0,0.00020445,2]
[344731390,1733755846312,-500.0,0.00020445,2]
[344731391,1733755846323,-500.0,0.00020445,2]
[344731392,1733755846333,-500.0,0.00020445,2]
[344731393,1733755846342,-500.0,0.00020445,2]
[344731394,1733755846352,-500.0,0.00020445,2]
[344731395,1733755846362,-500.0,0.00020445,2]
[344731396,1733755846371,-4689.53094202,0.00020447,2]
[344731398,1733755901536,237.513233,0.00013973,2]
[344731404,1733756213059,914.5,0.00029977,30]
[344731473,1733757032313,-217.532329,0.00018758,2]
[344731475,1733757032323,-1108.467671,0.0001877,2]
[344731489,1733757032449,-395.70662297,0.0001877,2]
[344731638,1733757039167,-7728.72349081,0.0001877,2]
[344731639,1733757039177,-300.0,0.00019103,2]
[344731640,1733757039186,-300.0,0.00019103,2]
[344731641,1733757039196,-9232.89778478,0.00019105,2]
[344731642,1733757039206,-4529.00033571,0.00019423,2]
[344731651,1733757040271,-427.63664462,0.00019901,2]
[344731654,1733757040376,-2142.61681475,0.00019901,2]
[344731671,1733757043614,-5530.39424148,0.00019901,2]
[344731672,1733757043623,-11006.03228299,0.0002,2]
[344731673,1733757043635,-7819.6006,0.0002,2]
[344731674,1733757043646,-442.71028171,0.0002,2]
[344731675,1733757043710,-266.74607202,0.0002,2]
[344731695,1733757046360,-5009.38,0.0002,2]
[344731698,1733757046372,-5765.99982126,0.0002,2]
[344731699,1733757046381,-230.56427255,0.00020164,2]
[344731700,1733757046393,-335.66482026,0.00020164,2]
[344731701,1733757049362,225.637571,0.00013973,2]
[344731711,1733757265750,403.23147966,0.00029982,30]
[344731716,1733757865522,1201997.38,0.00030002,30]
[344731737,1733757992955,222.569604,0.00013973,2]
[344731804,1733758232580,-300.0,0.00018878,2]
[344731805,1733758232594,-300.0,0.00018878,2]
[344731806,1733758232604,-169.32494742,0.00018879,2]
[344731807,1733758232613,-423.5672519,0.00018879,2]
[344731808,1733758232623,-164.27448257,0.00018879,2]
[344731809,1733758232632,-276.23506074,0.00018879,2]
[344731811,1733758232641,-370.21263755,0.00018879,2]
[344731813,1733758232653,-129.78736245,0.00018879,2]
[344731815,1733758232663,-466.49987755,0.00018879,2]
[344731817,1733758232674,-33.50012245,0.00018879,2]
[344731819,1733758232684,-500.0,0.00018879,2]
[344731821,1733758232693,-50.99987755,0.00018879,2]
[344731824,1733758232713,-449.00012245,0.00018879,2]
[344731826,1733758232723,-566.20239954,0.00018879,2]
[344731828,1733758232732,-500.0,0.00018879,2]
[344731831,1733758232741,-451.35110786,0.00018879,2]
[344731836,1733758232860,-500.0,0.00018879,2]
[344731837,1733758232870,-500.0,0.00018879,2]
[344731838,1733758232879,-185230.19879015,0.0001888,2]
[344731839,1733758232891,-2368.48390037,0.0001888,2]
[344731840,1733758232903,-459.48916583,0.0001888,2]
[344731841,1733758232914,-3858.83397566,0.0001888,2]
[344731842,1733758232933,-6633.49216825,0.0001888,2]
[344731843,1733758232944,-168912.40141502,0.0001888,2]
[344731844,1733758232954,-7911.90466992,0.00019392,2]
[344731845,1733758232963,-7911.90466992,0.0001963,2]
[344731846,1733758232972,-355.987946,0.00019736,2]
[344731847,1733758232982,-7911.90466992,0.00019995,2]
[344731848,1733758232991,-24195.68436178,0.00020377,2]
[344731849,1733758233001,-222.569604,0.00020447,2]
[344731850,1733758233016,-420.0,0.0002058,2]
[344731851,1733758233038,-420.0,0.00020766,2]
[344731852,1733758233051,-187.631555,0.00020992,2]
[344731853,1733758233062,-24900.0,0.00021495,2]
[344731854,1733758233073,-453.4946271,0.0002159,2]